fUSD/lending_fUSD_20250623
["ID","MTS","AMOUNT","RATE_DAILY","PERIOD"]
[367156198,1750677053146,-808.56,0.00024657,2]
[367156199,1750677053155,-490.0,0.00024657,2]
[367156200,1750677053165,-490.0,0.00024657,2]
[367156201,1750677053175,-490.0,0.00024657,2]
[367156202,1750677053184,-813.78,0.00024657,2]
[367156203,1750677053194,-490.0,0.00024657,2]
[367156204,1750677053204,-494.46965957,0.00024657,2]
[367156205,1750677053214,-490.0,0.00024657,2]
[367156206,1750677053224,-490.0,0.00024657,2]
[367156207,1750677053234,-1206.7,0.00024657,2]
[367156208,1750677053243,-490.0,0.00024657,2]
[367156209,1750677053253,-490.0,0.00024657,2]
[367156210,1750677053263,-1246.53,0.00024657,2]
[367156211,1750677053272,-627.98,0.00024657,2]
[367156212,1750677053282,-696.03,0.00024657,2]
[367156213,1750677053292,-490.0,0.00024657,2]
[367156214,1750677053301,-490.0,0.00024657,2]
[367156215,1750677053311,-490.0,0.00024657,2]
[367156216,1750677053320,-4144.96,0.00024657,2]
[367156217,1750677053329,-490.0,0.00024657,2]
[367156218,1750677053339,-1782.42,0.00024657,2]
[367156219,1750677053349,-490.0,0.00024657,2]
[367156220,1750677053358,-1038.23,0.00024657,2]
[367156221,1750677053368,-490.0,0.00024657,2]
[367156222,1750677053378,-904.57,0.00024657,2]
[367156223,1750677053388,-490.0,0.00024657,2]
[367156224,1750677053398,-497.15,0.00024657,2]
[367156225,1750677053408,-521.75,0.00024657,2]
[367156226,1750677053418,-490.0,0.00024657,2]
[367156227,1750677053428,-490.0,0.00024657,2]
[367156228,1750677053438,-566.83,0.00024657,2]
[367156229,1750677053448,-490.0,0.00024657,2]
[367156230,1750677053458,-490.0,0.00024657,2]
[367156231,1750677053468,-490.0,0.00024657,2]
[367156232,1750677053479,-878.53,0.00024657,2]
[367156233,1750677053488,-490.0,0.00024657,2]
[367156234,1750677053498,-914.5,0.00024657,2]
[367156235,1750677053508,-520.3,0.00024657,2]
[367156236,1750677053518,-490.0,0.00024657,2]
[367156237,1750677053527,-490.0,0.00024657,2]
[367156238,1750677053536,-500.0,0.00024657,2]
[367156239,1750677053546,-497.67459982,0.00024657,2]
[367156240,1750677053556,-490.0,0.00024657,2]
[367156241,1750677053565,-1712.67,0.00024657,2]
[367156242,1750677053576,-1037.51,0.00024657,2]
[367156243,1750677053585,-906.93,0.00024657,2]
[367156244,1750677053595,-490.0,0.00024657,2]
[367156245,1750677053604,-490.0,0.00024657,2]
[367156246,1750677053613,-490.0,0.00024657,2]
[367156247,1750677053623,-741.36,0.00024657,2]
[367156248,1750677053633,-808.34,0.00024657,2]
[367156249,1750677053646,-490.0,0.00024657,2]
[367156250,1750677053656,-490.0,0.00024657,2]
[367156251,1750677053666,-490.0,0.00024657,2]
[367156252,1750677053675,-490.0,0.00024657,2]
[367156253,1750677053685,-490.0,0.00024657,2]
[367156254,1750677053696,-490.0,0.00024657,2]
[367156255,1750677053705,-1110.76,0.00024657,2]
[367156256,1750677053716,-490.0,0.00024657,2]
[367156257,1750677053726,-490.0,0.00024657,2]
[367156258,1750677053736,-490.0,0.00024657,2]
[367156259,1750677053745,-490.0,0.00024657,2]
[367156260,1750677053755,-740.2,0.00024657,2]
[367156261,1750677053765,-490.0,0.00024657,2]
[367156262,1750677053775,-490.0,0.00024657,2]
[367156263,1750677053785,-1049.86,0.00024657,2]
[367156264,1750677053795,-490.0,0.00024657,2]
[367156265,1750677053804,-490.0,0.00024657,2]
[367156266,1750677053814,-490.0,0.00024657,2]
[367156267,1750677053825,-490.0,0.00024657,2]
[367156268,1750677053834,-780.11,0.00024657,2]
[367156269,1750677053844,-685.76,0.00024657,2]
[367156270,1750677053855,-1220.59,0.00024657,2]
[367156271,1750677053865,-1093.55,0.00024657,2]
[367156272,1750677053874,-1038.5,0.00024657,2]
[367156273,1750677053883,-490.0,0.00024657,2]
[367156274,1750677053894,-519.28724067,0.00024657,2]
[367156275,1750677053903,-490.0,0.00024657,2]
[367156276,1750677053912,-517.06,0.00024657,2]
[367156277,1750677053922,-490.0,0.00024657,2]
[367156278,1750677053931,-490.0,0.00024657,2]
[367156279,1750677053941,-1320.28,0.00024657,2]
[367156280,1750677053951,-490.0,0.00024657,2]
[367156281,1750677053960,-722.76,0.00024657,2]
[367156282,1750677053969,-1224.55,0.00024657,2]
[367156283,1750677053978,-517.37,0.00024657,2]
[367156284,1750677053987,-490.0,0.00024657,2]
[367156285,1750677053996,-490.0,0.00024657,2]
[367156286,1750677054006,-490.0,0.00024657,2]
[367156287,1750677054015,-513.56,0.00024657,2]
[367156288,1750677054024,-490.0,0.00024657,2]
[367156289,1750677054033,-490.0,0.00024657,2]
[367156290,1750677054042,-490.0,0.00024657,2]
[367156291,1750677054051,-490.0,0.00024657,2]
[367156292,1750677054061,-490.0,0.00024657,2]
[367156293,1750677054070,-490.0,0.00024657,2]
[367156294,1750677054079,-490.0,0.00024657,2]
[367156295,1750677054089,-490.0,0.00024657,2]
[367156296,1750677054098,-490.0,0.00024657,2]
[367156297,1750677054107,-890.1,0.00024657,2]
[367156298,1750677054116,-543.9,0.00024657,2]
[367156299,1750677054125,-490.0,0.00024657,2]
[367156300,1750677054134,-689.62,0.00024657,2]
[367156301,1750677054143,-1003.37,0.00024657,2]
[367156302,1750677054152,-932.18,0.00024657,2]
[367156303,1750677054161,-659.04,0.00024657,2]
[367156304,1750677054170,-490.0,0.00024657,2]
[367156305,1750677054179,-490.0,0.00024657,2]
[367156306,1750677054189,-490.0,0.00024657,2]
[367156307,1750677054198,-490.0,0.00024657,2]
[367156308,1750677054207,-490.0,0.00024657,2]
[367156309,1750677054216,-830.76,0.00024657,2]
[367156310,1750677054226,-490.0,0.00024657,2]
[367156311,1750677054235,-490.0,0.00024657,2]
[367156312,1750677054244,-490.0,0.00024657,2]
[367156313,1750677054253,-317.09759956,0.00024657,2]
[367156314,1750677054263,-490.0,0.00024657,2]
[367156315,1750677054272,-1724.52,0.00024657,2]
[367156316,1750677054281,-646.8,0.00024657,2]
[367156317,1750677054291,-490.0,0.00024657,2]
[367156318,1750677054300,-877.72,0.00024657,2]
[367156319,1750677054309,-493.82832731,0.00024657,2]
[367156320,1750677054318,-627.91,0.00024657,2]
[367156321,1750677054327,-813.69,0.00024657,2]
[367156322,1750677054337,-490.0,0.00024657,2]
[367156323,1750677054346,-490.0,0.00024657,2]
[367156324,1750677054355,-490.0,0.00024657,2]
[367156325,1750677054365,-1392.42,0.00024657,2]
[367156326,1750677054374,-1083.36,0.00024657,2]
[367156327,1750677054383,-490.0,0.00024657,2]
[367156328,1750677054392,-916.36,0.00024657,2]
[367156329,1750677054401,-490.0,0.00024657,2]
[367156330,1750677054410,-490.0,0.00024657,2]
[367156331,1750677054419,-490.0,0.00024657,2]
[367156332,1750677054428,-490.0,0.00024657,2]
[367156333,1750677054437,-1336.25,0.00024657,2]
[367156334,1750677054447,-490.0,0.00024657,2]
[367156335,1750677054456,-734.58,0.00024657,2]
[367156336,1750677054465,-727.65,0.00024657,2]
[367156337,1750677054474,-426.50691966,0.00024657,2]
[367156338,1750677054484,-490.0,0.00024657,2]
[367156339,1750677054493,-603.39619157,0.00024657,2]
[367156340,1750677054502,-490.0,0.00024657,2]
[367156341,1750677054511,-213.9817738,0.00024657,2]
[367156342,1750677054520,-2469.49,0.00024657,2]
[367156343,1750677054529,-490.0,0.00024657,2]
[367156344,1750677054539,-934.65,0.00024657,2]
[367156345,1750677054548,-234.01706106,0.00024657,2]
[367156346,1750677054557,-490.0,0.00024657,2]
[367156347,1750677054567,-490.0,0.00024657,2]
[367156348,1750677054576,-609.51,0.00024657,2]
[367156349,1750677054586,-490.0,0.00024657,2]
[367156350,1750677054595,-490.0,0.00024657,2]
[367156351,1750677054606,-1566.81,0.00024657,2]
[367156352,1750677054615,-490.0,0.00024657,2]
[367156353,1750677054624,-3067.33,0.00024657,2]
[367156354,1750677054636,-1040.1,0.00024657,2]
[367156355,1750677054648,-714.68,0.00024657,2]
[367156356,1750677054657,-490.0,0.00024657,2]
[367156357,1750677054666,-490.0,0.00024657,2]
[367156358,1750677054676,-498.72302627,0.00024657,2]
[367156359,1750677054687,-954.32,0.00024657,2]
[367156360,1750677054696,-1890.59,0.00024657,2]
[367156361,1750677054706,-490.0,0.00024657,2]
[367156362,1750677054717,-2844.16,0.00024657,2]
[367156363,1750677054727,-490.0,0.00024657,2]
[367156364,1750677054816,-490.0,0.00024657,2]
[367156365,1750677054826,-749.42,0.00024657,2]
[367156366,1750677054835,-490.0,0.00024657,2]
[367156367,1750677054844,-794.74,0.00024657,2]
[367156368,1750677054854,-748.25,0.00024657,2]
[367156369,1750677054863,-490.0,0.00024657,2]
[367156370,1750677054873,-1160.6,0.00024657,2]
[367156371,1750677054882,-516.2,0.00024657,2]
[367156372,1750677054891,-490.0,0.00024657,2]
[367156373,1750677054900,-490.0,0.00024657,2]
[367156374,1750677054910,-5466.67,0.00024657,2]
[367156375,1750677054919,-761.32,0.00024657,2]
[367156376,1750677054928,-688.21,0.00024657,2]
[367156377,1750677054937,-490.0,0.00024657,2]
[367156378,1750677054947,-490.0,0.00024657,2]
[367156379,1750677054956,-490.0,0.00024657,2]
[367156380,1750677054965,-490.0,0.00024657,2]
[367156381,1750677054974,-1507.34,0.00024657,2]
[367156382,1750677054984,-998.88,0.00024657,2]
[367156383,1750677054993,-490.0,0.00024657,2]
[367156384,1750677055002,-490.0,0.00024657,2]
[367156385,1750677055011,-617.43,0.00024657,2]
[367156386,1750677055020,-497.36,0.00024657,2]
[367156387,1750677055030,-490.0,0.00024657,2]
[367156388,1750677055039,-3647.99,0.00024657,2]
[367156389,1750677055048,-490.0,0.00024657,2]
[367156390,1750677055057,-325.06996461,0.00024657,2]
[367156391,1750677055066,-428.88825735,0.00024657,2]
[367156392,1750677055075,-1207.93,0.00024657,2]
[367156393,1750677055085,-490.0,0.00024657,2]
[367156394,1750677055094,-490.0,0.00024657,2]
[367156395,1750677055103,-490.0,0.00024657,2]
[367156396,1750677055112,-938.37,0.00024657,2]
[367156397,1750677055121,-1536.08,0.00024657,2]
[367156398,1750677055130,-3679.45,0.00024657,2]
[367156399,1750677055139,-490.0,0.00024657,2]
[367156400,1750677055148,-490.0,0.00024657,2]
[367156401,1750677055157,-1155.17,0.00024657,2]
[367156402,1750677055166,-490.0,0.00024657,2]
[367156403,1750677055175,-1104.97,0.00024657,2]
[367156404,1750677055184,-865.36,0.00024657,2]
[367156405,1750677055193,-490.0,0.00024657,2]
[367156406,1750677055202,-559.0,0.00024657,2]
[367156407,1750677055211,-675.45,0.00024657,2]
[367156408,1750677055220,-490.0,0.00024657,2]
[367156409,1750677055229,-1724.41,0.00024657,2]
[367156410,1750677055239,-500.0,0.00024657,2]
[367156411,1750677055248,-500.0,0.00024657,2]
[367156412,1750677055257,-1028.84,0.00024657,2]
[367156413,1750677055266,-297.78112939,0.00024657,2]
[367156414,1750677055275,-500.0,0.00024657,2]
[367156415,1750677055284,-500.0,0.00024657,2]
[367156416,1750677055293,-500.0,0.00024657,2]
[367156417,1750677055302,-500.0,0.00024657,2]
[367156418,1750677055312,-490.0,0.00024657,2]
[367156419,1750677055321,-500.0,0.00024657,2]
[367156420,1750677055330,-1101.93,0.00024657,2]
[367156421,1750677055339,-500.0,0.00024657,2]
[367156422,1750677055347,-622.84,0.00024657,2]
[367156423,1750677055356,-490.0,0.00024657,2]
[367156424,1750677055365,-3974.33,0.00024657,2]
[367156425,1750677055374,-1483.73,0.00024657,2]
[367156426,1750677055383,-490.0,0.00024657,2]
[367156427,1750677055392,-490.0,0.00024657,2]
[367156428,1750677055402,-1009.22,0.00024657,2]
[367156429,1750677055411,-490.0,0.00024657,2]
[367156430,1750677055420,-222.25288798,0.00024657,2]
[367156431,1750677055429,-1093.5,0.00024657,2]
[367156432,1750677055438,-510.89,0.00024657,2]
[367156433,1750677055448,-490.0,0.00024657,2]
[367156434,1750677055459,-993.42,0.00024657,2]
[367156435,1750677055468,-1169.61,0.00024657,2]
[367156436,1750677055477,-1006.89,0.00024657,2]
[367156437,1750677055486,-490.0,0.00024657,2]
[367156438,1750677055495,-1255.3,0.00024657,2]
[367156439,1750677055505,-581.93,0.00024657,2]
[367156440,1750677055515,-490.0,0.00024657,2]
[367156441,1750677055524,-1130.12,0.00024657,2]
[367156442,1750677055534,-854.91,0.00024657,2]
[367156443,1750677055543,-1906.34,0.00024657,2]
[367156444,1750677055552,-1209.76,0.00024657,2]
[367156445,1750677055561,-490.0,0.00024657,2]
[367156446,1750677055571,-5661.34,0.00024657,2]
[367156447,1750677055580,-490.0,0.00024657,2]
[367156448,1750677055589,-490.0,0.00024657,2]
[367156449,1750677055599,-840.17,0.00024657,2]
[367156450,1750677055608,-267.33544532,0.00024657,2]
[367156451,1750677055618,-2678.71,0.00024657,2]
[367156452,1750677055627,-500.0,0.00024657,2]
[367156453,1750677055637,-490.0,0.00024657,2]
[367156454,1750677055648,-500.0,0.00024657,2]
[367156455,1750677055657,-1941.89,0.00024657,2]
[367156456,1750677055666,-1222.12,0.00024657,2]
[367156457,1750677055675,-500.0,0.00024657,2]
[367156458,1750677055686,-500.0,0.00024657,2]
[367156459,1750677055695,-889.66,0.00024657,2]
[367156460,1750677055704,-500.0,0.00024657,2]
[367156461,1750677055714,-918.26,0.00024657,2]
[367156462,1750677055724,-500.0,0.00024657,2]
[367156463,1750677055733,-1032.46,0.00024657,2]
[367156464,1750677055742,-500.0,0.00024657,2]
[367156465,1750677055751,-500.0,0.00024657,2]
[367156466,1750677055760,-500.0,0.00024657,2]
[367156467,1750677055769,-1279.02,0.00024657,2]
[367156468,1750677055779,-2585.29,0.00024657,2]
[367156469,1750677055788,-768.43,0.00024657,2]
[367156470,1750677055797,-2419.6,0.00024657,2]
[367156471,1750677055807,-568.16,0.00024657,2]
[367156472,1750677055816,-490.0,0.00024657,2]
[367156473,1750677055825,-490.0,0.00024657,2]
[367156474,1750677055834,-490.0,0.00024657,2]
[367156475,1750677055843,-12821.98,0.00024657,2]
[367156476,1750677055852,-987.9,0.00024657,2]
[367156477,1750677055861,-490.0,0.00024657,2]
[367156478,1750677055871,-490.0,0.00024657,2]
[367156479,1750677055880,-490.0,0.00024657,2]
[367156480,1750677055889,-1054.68,0.00024657,2]
[367156481,1750677055899,-987.61,0.00024657,2]
[367156482,1750677055908,-490.0,0.00024657,2]
[367156483,1750677055918,-8729.05,0.00024657,2]
[367156484,1750677055926,-490.0,0.00024657,2]
[367156485,1750677055935,-5269.94,0.00024657,2]
[367156486,1750677055945,-490.0,0.00024657,2]
[367156487,1750677055954,-490.0,0.00024657,2]
[367156488,1750677055964,-1243.2,0.00024657,2]
[367156489,1750677055973,-490.0,0.00024657,2]
[367156490,1750677055982,-490.0,0.00024657,2]
[367156491,1750677055991,-1328.79,0.00024657,2]
[367156492,1750677056000,-1199.64,0.00024657,2]
[367156493,1750677056009,-1270.85,0.00024657,2]
[367156494,1750677056018,-1479.89,0.00024657,2]
[367156495,1750677056027,-901.47,0.00024657,2]
[367156496,1750677056036,-490.0,0.00024657,2]
[367156497,1750677056045,-1905.8,0.00024657,2]
[367156498,1750677056054,-1269.49,0.00024657,2]
[367156499,1750677056063,-293.11228903,0.00024657,2]
[367156500,1750677056072,-1194.83,0.00024657,2]
[367156501,1750677056081,-490.0,0.00024657,2]
[367156502,1750677056090,-490.0,0.00024657,2]
[367156503,1750677056099,-490.0,0.00024657,2]
[367156504,1750677056108,-1258.25,0.00024657,2]
[367156505,1750677056118,-1683.2,0.00024657,2]
[367156506,1750677056127,-2479.76,0.00024657,2]
[367156507,1750677056136,-744.12,0.00024657,2]
[367156508,1750677056146,-490.0,0.00024657,2]
[367156509,1750677056154,-490.0,0.00024657,2]
[367156510,1750677056163,-182.28750954,0.00024657,2]
[367156511,1750677056172,-2433.09,0.00024657,2]
[367156512,1750677056180,-1148.2,0.00024657,2]
[367156513,1750677056190,-490.0,0.00024657,2]
[367156514,1750677056199,-490.0,0.00024657,2]
[367156515,1750677056209,-490.0,0.00024657,2]
[367156516,1750677056219,-811.71,0.00024657,2]
[367156517,1750677056229,-3202.37,0.00024657,2]
[367156518,1750677056240,-1172.2,0.00024657,60]
[367156519,1750677056251,-1220.57,0.00024657,2]
[367156520,1750677056260,-490.0,0.00024657,2]
[367156521,1750677056270,-490.0,0.00024657,2]
[367156522,1750677056280,-1747.79,0.00024657,2]
[367156523,1750677056290,-490.0,0.00024657,2]
[367156524,1750677056299,-1151.73,0.00024657,2]
[367156525,1750677056308,-296.26416167,0.00024657,2]
[367156526,1750677056318,-490.0,0.00024657,2]
[367156527,1750677056328,-490.0,0.00024657,2]
[367156528,1750677056339,-490.0,0.00024657,2]
[367156529,1750677056348,-1835.59,0.00024657,2]
[367156530,1750677056358,-612.9,0.00024657,2]
[367156531,1750677056368,-490.0,0.00024657,2]
[367156532,1750677056377,-1897.78,0.00024657,2]
[367156533,1750677056387,-660.48,0.00024657,2]
[367156534,1750677056398,-490.0,0.00024657,2]
[367156535,1750677056407,-650.52,0.00024657,2]
[367156536,1750677056416,-238.03665234,0.00024657,2]
[367156537,1750677056424,-811.19,0.00024657,2]
[367156538,1750677056432,-1906.84,0.00024657,2]
[367156539,1750677056440,-490.0,0.00024657,2]
[367156540,1750677056448,-490.0,0.00024657,2]
[367156541,1750677056458,-3291.97,0.00024657,2]
[367156542,1750677056468,-490.0,0.00024657,2]
[367156543,1750677056477,-1148.64,0.00024657,2]
[367156544,1750677056485,-1076.45,0.00024657,2]
[367156545,1750677056494,-1093.69,0.00024657,2]
[367156546,1750677056503,-2704.29,0.00024657,2]
[367156547,1750677056512,-1027.5,0.00024657,2]
[367156548,1750677056521,-492.71,0.00024657,2]
[367156549,1750677056531,-1303.69,0.00024657,2]
[367156550,1750677056540,-982.69,0.00024657,2]
[367156551,1750677056548,-490.0,0.00024657,2]
[367156552,1750677056559,-995.41,0.00024657,2]
[367156553,1750677056568,-2360.05,0.00024657,2]
[367156554,1750677056578,-2091.44,0.00024657,2]
[367156555,1750677056587,-490.0,0.00024657,2]
[367156556,1750677056596,-3835.85,0.00024657,2]
[367156557,1750677056605,-706.97,0.00024657,2]
[367156558,1750677056614,-1369.92,0.00024657,2]
[367156559,1750677056623,-1143.3,0.00024657,2]
[367156560,1750677056633,-3815.53,0.00024657,2]
[367156561,1750677056648,-490.0,0.00024657,2]
[367156562,1750677056657,-1554.86,0.00024657,2]
[367156563,1750677056666,-1080.47,0.00024657,2]
[367156564,1750677056675,-1449.96,0.00024657,2]
[367156565,1750677056684,-559.03,0.00024657,2]
[367156566,1750677056694,-490.0,0.00024657,2]
[367156567,1750677056703,-2332.35,0.00024657,2]
[367156568,1750677056712,-587.4,0.00024657,2]
[367156569,1750677056722,-490.0,0.00024657,2]
[367156570,1750677056731,-977.56,0.00024657,2]
[367156571,1750677056740,-812.92,0.00024657,2]
[367156572,1750677056749,-25085.71,0.00024657,2]
[367156573,1750677056759,-683.11,0.00024657,2]
[367156574,1750677056768,-1840.35,0.00024657,2]
[367156575,1750677056777,-1125.1,0.00024657,2]
[367156576,1750677056786,-641.55,0.00024657,2]
[367156577,1750677056795,-655.54,0.00024657,2]
[367156578,1750677056804,-834.01,0.00024657,2]
[367156579,1750677056814,-490.0,0.00024657,2]
[367156580,1750677056823,-490.0,0.00024657,2]
[367156581,1750677056832,-490.0,0.00024657,2]
[367156582,1750677056842,-974.57,0.00024657,2]
[367156583,1750677056854,-502.74,0.00024657,2]
[367156584,1750677056867,-763.77,0.00024657,2]
[367156585,1750677056881,-490.0,0.00024657,2]
[367156586,1750677056891,-767.58,0.00024657,2]
[367156587,1750677056900,-568.31,0.00024657,2]
[367156588,1750677056909,-301.1284444,0.00024657,2]
[367156589,1750677056918,-7126.96,0.00024657,2]
[367156590,1750677056928,-1104.3,0.00024657,2]
[367156591,1750677056937,-490.0,0.00024657,2]
[367156592,1750677056946,-1731.3,0.00024657,2]
[367156593,1750677056955,-628.25,0.00024657,2]
[367156594,1750677056964,-490.0,0.00024657,2]
[367156595,1750677056973,-594.04,0.00024657,2]
[367156596,1750677056982,-1501.29,0.00024657,2]
[367156597,1750677056991,-687.35,0.00024657,2]
[367156598,1750677057001,-1061.53,0.00024657,2]
[367156599,1750677057011,-490.0,0.00024657,2]
[367156600,1750677057020,-620.14,0.00024657,2]
[367156601,1750677057030,-1109.8,0.00024657,2]
[367156602,1750677057039,-496.8,0.00024657,2]
[367156603,1750677057048,-490.0,0.00024657,2]
[367156604,1750677057059,-516.08,0.00024657,2]
[367156605,1750677057069,-592.18,0.00024657,2]
[367156606,1750677057078,-787.02,0.00024657,2]
[367156607,1750677057088,-490.0,0.00024657,2]
[367156608,1750677057097,-490.0,0.00024657,2]
[367156609,1750677057106,-1175.89,0.00024657,2]
[367156610,1750677057115,-490.0,0.00024657,2]
[367156611,1750677057125,-1145.01,0.00024657,2]
[367156612,1750677057134,-1406.71,0.00024657,2]
[367156613,1750677057145,-490.0,0.00024657,2]
[367156614,1750677057155,-654.39,0.00024657,2]
[367156615,1750677057166,-1485.55,0.00024657,2]
[367156616,1750677057175,-490.0,0.00024657,2]
[367156617,1750677057184,-490.0,0.00024657,2]
[367156618,1750677057193,-1088.39,0.00024657,2]
[367156619,1750677057202,-490.0,0.00024657,2]
[367156620,1750677057212,-886.98,0.00024657,2]
[367156621,1750677057222,-757.99,0.00024657,2]
[367156622,1750677057232,-2438.76,0.00024657,2]
[367156623,1750677057242,-851.55,0.00024657,2]
[367156624,1750677057253,-490.0,0.00024657,2]
[367156625,1750677057263,-490.0,0.00024657,2]
[367156626,1750677057272,-490.0,0.00024657,2]
[367156627,1750677057282,-490.0,0.00024657,2]
[367156628,1750677057291,-490.000001,0.00024657,2]
[367156629,1750677057301,-490.0,0.00024657,2]
[367156630,1750677057311,-490.0,0.00024657,2]
[367156631,1750677057319,-269.681349,0.00024657,2]
[367156632,1750677057328,-1944.74,0.00024657,2]
[367156633,1750677057338,-490.0,0.00024657,2]
[367156634,1750677057347,-1325.86,0.00024657,2]
[367156635,1750677057357,-490.0,0.00024657,2]
[367156636,1750677057366,-2106.55,0.00024657,2]
[367156637,1750677057375,-924.09,0.00024657,2]
[367156638,1750677057384,-651.59,0.00024657,2]
[367156639,1750677057393,-1326.41,0.00024657,2]
[367156640,1750677057402,-1071.46,0.00024657,2]
[367156641,1750677057412,-857.98,0.00024657,2]
[367156642,1750677057421,-1112.87,0.00024657,2]
[367156643,1750677057430,-490.0,0.00024657,2]
[367156644,1750677057439,-490.0,0.00024657,2]
[367156645,1750677057448,-1112.52,0.00024657,2]
[367156646,1750677057457,-1481.79,0.00024657,2]
[367156647,1750677057467,-2758.61,0.00024657,2]
[367156648,1750677057476,-1668.55,0.00024657,2]
[367156649,1750677057485,-490.0,0.00024657,2]
[367156650,1750677057494,-490.0,0.00024657,2]
[367156651,1750677057504,-490.0,0.00024657,2]
[367156652,1750677057513,-490.0,0.00024657,2]
[367156653,1750677057524,-747.39,0.00024657,2]
[367156654,1750677057534,-490.0,0.00024657,2]
[367156655,1750677057545,-972.12,0.00024657,2]
[367156656,1750677057554,-959.49,0.00024657,2]
[367156657,1750677057563,-490.0,0.00024657,2]
[367156658,1750677057573,-490.0,0.00024657,2]
[367156659,1750677057582,-457.74607384,0.00024657,2]
[367156660,1750677057591,-3539.8,0.00024657,2]
[367156661,1750677057601,-5631.18,0.00024657,2]
[367156662,1750677057610,-1584.63,0.00024657,2]
[367156663,1750677057619,-5247.94,0.00024657,2]
[367156664,1750677057628,-490.0,0.00024657,2]
[367156665,1750677057640,-845.53,0.00024657,2]
[367156666,1750677057650,-490.0,0.00024657,2]
[367156667,1750677057659,-1327.62,0.00024657,2]
[367156668,1750677057668,-1367.14,0.00024657,2]
[367156669,1750677057678,-1268.86,0.00024657,2]
[367156670,1750677057688,-868.17,0.00024657,2]
[367156671,1750677057697,-490.0,0.00024657,2]
[367156672,1750677057707,-176.824174,0.00024657,2]
[367156673,1750677057719,-1304.88,0.00024657,2]
[367156674,1750677057728,-657.41,0.00024657,2]
[367156675,1750677057738,-1044.06,0.00024657,2]
[367156676,1750677057748,-798.91,0.00024657,2]
[367156677,1750677057757,-292.2510235,0.00024657,2]
[367156678,1750677057766,-1108.33,0.00024657,2]
[367156679,1750677057776,-696.97,0.00024657,2]
[367156680,1750677057786,-6725.94,0.00024657,2]
[367156681,1750677057795,-490.0,0.00024657,2]
[367156682,1750677057805,-1108.91,0.00024657,2]
[367156683,1750677057815,-1592.59,0.00024657,2]
[367156684,1750677057825,-490.0,0.00024657,2]
[367156685,1750677057835,-797.02,0.00024657,2]
[367156686,1750677057844,-981.46,0.00024657,2]
[367156687,1750677057853,-490.0,0.00024657,2]
[367156688,1750677057863,-1598.87,0.00024657,2]
[367156689,1750677057872,-490.0,0.00024657,2]
[367156690,1750677057882,-490.0,0.00024657,2]
[367156691,1750677057891,-1697.72,0.00024657,2]
[367156692,1750677057900,-490.0,0.00024657,2]
[367156693,1750677057909,-853.51,0.00024657,2]
[367156694,1750677057918,-490.0,0.00024657,2]
[367156695,1750677057927,-492.12,0.00024657,2]
[367156696,1750677057937,-491.50660046,0.00024657,2]
[367156697,1750677057946,-490.0,0.00024657,2]